fUSD/lending_fUSD_20251113
["ID","MTS","AMOUNT","RATE_DAILY","PERIOD"]
[393794769,1762995047455,-380.080443,0.00040631,120]
[393794770,1762995047465,-380.080443,0.00040631,120]
[393794771,1762995047475,-380.080443,0.00040631,120]
[393794772,1762995047484,-151.0,0.00040631,120]
[393794773,1762995047494,-380.080443,0.00040631,120]
[393794774,1762995047505,-151.0,0.00040631,120]
[393794775,1762995047514,-151.0,0.00040631,120]
[393794776,1762995047524,-380.080443,0.00040631,120]
[393794777,1762995047534,-151.0,0.00040631,120]
[393794778,1762995047543,-380.080443,0.00040631,120]
[393794779,1762995047552,-380.080443,0.00040631,120]
[393794780,1762995047561,-151.0,0.00040631,120]
[393794781,1762995047570,-380.080443,0.00040631,120]
[393794782,1762995047579,-151.0,0.00040631,120]
[393794783,1762995047589,-151.0,0.00040631,120]
[393794784,1762995047598,-380.080443,0.00040631,120]
[393794785,1762995047607,-151.0,0.00040631,120]
[393794786,1762995047616,-380.080443,0.00040631,120]
[393794787,1762995047625,-380.080443,0.00040631,120]
[393794788,1762995047634,-380.080439,0.00040631,120]
[393794789,1762995047644,-151.0,0.00040631,120]
[393794790,1762995047653,-151.0,0.00040631,120]
[393794791,1762995047662,-151.0,0.00040631,120]
[393794792,1762995047671,-151.0,0.00040631,120]
[393794793,1762995047682,-151.0,0.00040631,120]
[393794794,1762995047692,-248.983582,0.00040631,120]
[393794795,1762995047701,-151.0,0.00040631,120]
[393794796,1762995047710,-151.0,0.00040631,120]
[393794797,1762995047720,-151.0,0.00040631,120]
[393794798,1762995047731,-151.0,0.00040631,120]
[393794799,1762995047740,-151.0,0.00040631,120]
[393794800,1762995047750,-267.542857,0.00040631,120]
[393794801,1762995047759,-151.0,0.00040631,120]
[393794802,1762995047768,-151.0,0.00040631,120]
[393794803,1762995047777,-211.695624,0.00040631,120]
[393794804,1762995047786,-151.0,0.00040631,120]
[393794805,1762995047796,-211.695624,0.00040631,120]
[393794806,1762995047805,-151.0,0.00040631,120]
[393794807,1762995047814,-211.695624,0.00040631,120]
[393794808,1762995047824,-151.0,0.00040631,120]
[393794809,1762995047833,-211.695624,0.00040631,120]
[393794810,1762995047843,-253.752025,0.00040631,120]
[393794811,1762995047852,-211.695624,0.00040631,120]
[393794812,1762995047862,-211.695624,0.00040631,120]
[393794813,1762995047871,-211.695624,0.00040631,120]
[393794814,1762995047881,-211.695624,0.00040631,120]
[393794815,1762995047890,-211.695624,0.00040631,120]
[393794816,1762995047899,-211.695624,0.00040631,120]
[393794817,1762995047909,-211.695624,0.00040631,120]
[393794818,1762995047919,-211.695624,0.00040631,120]
[393794819,1762995047928,-151.0,0.00040631,120]
[393794820,1762995047937,-151.0,0.00040631,120]
[393794821,1762995047947,-211.695624,0.00040631,120]
[393794822,1762995047956,-151.0,0.00040631,120]
[393794823,1762995047965,-233.129119,0.00040631,120]
[393794824,1762995047975,-211.695624,0.00040631,120]
[393794825,1762995047985,-233.129119,0.00040631,120]
[393794826,1762995047995,-211.695624,0.00040631,120]
[393794827,1762995048005,-151.0,0.00040631,30]
[393794828,1762995048015,-233.129119,0.00040631,120]
[393794829,1762995048025,-211.69562,0.00040631,120]
[393794830,1762995048035,-151.0,0.00040631,30]
[393794831,1762995048047,-233.129119,0.00040631,120]
[393794832,1762995048058,-151.0,0.00040631,30]
[393794833,1762995048068,-151.0,0.00040631,30]
[393794834,1762995048077,-233.129119,0.00040631,120]
[393794835,1762995048086,-233.129119,0.00040631,120]
[393794836,1762995048096,-151.0,0.00040631,30]
[393794837,1762995048111,-233.129119,0.00040631,120]
[393794838,1762995048120,-151.0,0.00040631,120]
[393794839,1762995048130,-233.129119,0.00040631,120]
[393794840,1762995048139,-211.871528,0.00040631,120]
[393794841,1762995048150,-233.129119,0.00040631,120]
[393794842,1762995048159,-151.0,0.00040631,120]
[393794843,1762995048168,-233.129119,0.00040631,120]
[393794844,1762995048177,-151.0,0.00040631,120]
[393794845,1762995048187,-233.129119,0.00040631,120]
[393794846,1762995048199,-151.0,0.00040631,120]
[393794847,1762995048209,-233.129119,0.00040631,120]
[393794848,1762995048218,-155.057207,0.00040631,120]
[393794849,1762995048229,-233.129119,0.00040631,120]
[393794850,1762995048241,-233.129119,0.00040631,120]
[393794851,1762995048250,-233.129119,0.00040631,120]
[393794852,1762995048264,-233.129123,0.00040631,120]
[393794853,1762995048277,-151.0,0.00040631,30]
[393794854,1762995048289,-151.0,0.00040631,120]
[393794855,1762995048302,-151.0,0.00040631,30]
[393794856,1762995048313,-155.615775,0.00040631,120]
[393794857,1762995048324,-151.0,0.00040631,120]
[393794858,1762995048335,-151.0,0.00040631,30]
[393794859,1762995048344,-155.615775,0.00040631,120]
[393794860,1762995048354,-151.0,0.00040631,120]
[393794861,1762995048363,-151.0,0.00040631,30]
[393794862,1762995048372,-155.615775,0.00040631,120]
[393794863,1762995048382,-151.0,0.00040631,120]
[393794864,1762995048392,-155.615775,0.00040631,120]
[393794865,1762995048401,-262.49054,0.00040631,120]
[393794866,1762995048410,-155.615775,0.00040631,120]
[393794867,1762995048516,-155.615775,0.00040631,120]
[393794868,1762995048526,-155.615775,0.00040631,120]
[393794869,1762995048536,-155.615775,0.00040631,120]
[393794870,1762995048546,-155.615775,0.00040631,120]
[393794871,1762995048555,-155.615775,0.00040631,120]
[393794872,1762995048565,-155.615775,0.00040631,120]
[393794873,1762995048574,-155.615775,0.00040631,120]
[393794874,1762995048583,-155.615775,0.00040631,120]
[393794875,1762995048592,-155.615775,0.00040631,120]
[393794876,1762995048601,-155.615775,0.00040631,120]
[393794877,1762995048610,-155.615778,0.00040631,120]
[393794878,1762995048625,-210.069638,0.00040631,120]
[393794879,1762995048635,-151.0,0.00040631,120]
[393794880,1762995048644,-186.851635,0.00040631,120]
[393794881,1762995048653,-151.0,0.00040631,120]
[393794882,1762995048663,-151.0,0.00040631,120]
[393794883,1762995048672,-151.0,0.00040631,120]
[393794884,1762995048681,-151.0,0.00040631,120]
[393794885,1762995048691,-151.0,0.00040631,120]
[393794886,1762995048700,-151.0,0.00040631,120]
[393794887,1762995048710,-151.0,0.00040631,120]
[393794888,1762995048719,-151.0,0.00040631,120]
[393794889,1762995048729,-265.876842,0.00040631,120]
[393794890,1762995048739,-151.913514,0.00040631,120]
[393794891,1762995048749,-249.680338,0.00040631,120]
[393794892,1762995048759,-151.0,0.00040631,120]
[393794893,1762995048769,-151.936518,0.00040631,120]
[393794894,1762995048779,-151.0,0.00040631,120]
[393794895,1762995048789,-151.0,0.00040631,120]
[393794896,1762995048798,-156.898249,0.00040631,120]
[393794897,1762995048808,-151.0,0.00040631,120]
[393794898,1762995048818,-151.0,0.00040631,120]
[393794899,1762995048827,-278.944442,0.00040631,120]
[393794900,1762995048837,-201.762774,0.00040631,120]
[393794901,1762995048850,-201.762774,0.00040631,120]
[393794902,1762995048861,-201.762774,0.00040631,120]
[393794903,1762995048871,-151.0,0.00040631,120]
[393794904,1762995048881,-201.762774,0.00040631,120]
[393794905,1762995048891,-151.0,0.00040631,120]
[393794906,1762995048900,-151.0,0.00040631,120]
[393794907,1762995048910,-201.762774,0.00040631,120]
[393794908,1762995048920,-151.0,0.00040631,120]
[393794909,1762995048929,-201.762774,0.00040631,120]
[393794910,1762995048939,-201.762774,0.00040631,120]
[393794911,1762995048948,-265.016433,0.00040631,120]
[393794912,1762995048957,-201.762774,0.00040631,120]
[393794913,1762995048967,-201.762774,0.00040631,120]
[393794914,1762995048976,-201.762774,0.00040631,120]
[393794915,1762995048987,-201.762774,0.00040631,120]
[393794916,1762995048996,-201.762774,0.00040631,120]
[393794917,1762995049006,-201.762774,0.00040631,120]
[393794918,1762995049015,-201.762774,0.00040631,120]
[393794919,1762995049024,-201.762774,0.00040631,120]
[393794920,1762995049033,-201.762769,0.00040631,120]
[393794921,1762995049042,-151.0,0.00040631,120]
[393794922,1762995049051,-151.0,0.00040631,120]
[393794923,1762995049061,-151.0,0.00040631,120]
[393794924,1762995049070,-151.0,0.00040631,120]
[393794925,1762995049080,-220.361157,0.00040631,120]
[393794926,1762995049089,-151.0,0.00040631,120]
[393794927,1762995049098,-151.0,0.00040631,120]
[393794928,1762995049107,-151.0,0.00040631,120]
[393794929,1762995049116,-151.0,0.00040631,120]
[393794930,1762995049125,-151.0,0.00040631,120]
[393794931,1762995049134,-242.183578,0.00040631,120]
[393794932,1762995049144,-151.0,0.00040631,120]
[393794933,1762995049153,-151.0,0.00040631,120]
[393794934,1762995049162,-151.0,0.00040631,120]
[393794935,1762995049171,-151.0,0.00040631,120]
[393794936,1762995049180,-157.763248,0.00040631,120]
[393794937,1762995049189,-151.0,0.00040631,120]
[393794938,1762995049198,-151.0,0.00040631,120]
[393794939,1762995049207,-151.0,0.00040631,120]
[393794940,1762995049216,-151.0,0.00040631,120]
[393794941,1762995049225,-151.0,0.00040631,120]
[393794942,1762995049236,-151.0,0.00040631,120]
[393794943,1762995049245,-151.0,0.00040631,120]
[393794944,1762995049254,-151.0,0.00040631,120]
[393794945,1762995049262,-196.071852,0.00040631,120]
[393794946,1762995049271,-151.0,0.00040631,120]
[393794947,1762995049280,-161.563541,0.00040631,120]
[393794948,1762995049289,-151.0,0.00040631,120]
[393794949,1762995049298,-151.0,0.00040631,120]
[393794950,1762995049307,-151.0,0.00040631,120]
[393794951,1762995049316,-151.0,0.00040631,120]
[393794952,1762995049326,-151.0,0.00040631,120]
[393794953,1762995049335,-151.0,0.00040631,120]
[393794954,1762995049344,-151.0,0.00040631,120]
[393794955,1762995049354,-151.0,0.00040631,120]
[393794956,1762995049363,-151.0,0.00040631,120]
[393794957,1762995049374,-151.0,0.00040631,120]
[393794958,1762995049384,-151.0,0.00040631,120]
[393794959,1762995049394,-151.0,0.00040631,120]
[393794960,1762995049403,-151.0,0.00040631,120]
[393794961,1762995049413,-151.0,0.00040631,120]
[393794962,1762995049425,-151.0,0.00040631,120]
[393794963,1762995049434,-151.0,0.00040631,120]
[393794964,1762995049444,-285.734629,0.00040631,120]
[393794965,1762995049453,-175.288578,0.00040631,120]
[393794966,1762995049463,-151.0,0.00040631,120]
[393794967,1762995049473,-151.0,0.00040631,120]
[393794968,1762995049483,-214.019769,0.00040631,120]
[393794969,1762995049494,-151.0,0.00040631,120]
[393794970,1762995049504,-214.019769,0.00040631,120]
[393794971,1762995049514,-151.0,0.00040631,120]
[393794972,1762995049523,-214.019769,0.00040631,120]
[393794973,1762995049533,-151.0,0.00040631,120]
[393794974,1762995049542,-214.019769,0.00040631,120]
[393794975,1762995049551,-151.0,0.00040631,120]
[393794976,1762995049560,-214.019769,0.00040631,120]
[393794977,1762995049569,-151.0,0.00040631,120]
[393794978,1762995049579,-214.019769,0.00040631,120]
[393794979,1762995049588,-151.0,0.00040631,120]
[393794980,1762995049597,-214.019769,0.00040631,120]
[393794981,1762995049606,-151.0,0.00040631,120]
[393794982,1762995049618,-151.0,0.00040631,120]
[393794983,1762995049628,-214.019769,0.00040631,120]
[393794984,1762995049638,-151.0,0.00040631,120]
[393794985,1762995049647,-151.0,0.00040631,120]
[393794986,1762995049656,-151.0,0.00040631,120]
[393794987,1762995049666,-254.437368,0.00040631,120]
[393794988,1762995049675,-214.019769,0.00040631,120]
[393794989,1762995049685,-214.019769,0.00040631,120]
[393794990,1762995049694,-151.0,0.00040631,120]
[393794991,1762995049703,-214.019769,0.00040631,120]
[393794992,1762995049713,-151.0,0.00040631,120]
[393794993,1762995049722,-214.019769,0.00040631,120]
[393794994,1762995049731,-151.0,0.00040631,120]
[393794995,1762995049741,-214.019769,0.00040631,120]
[393794996,1762995049751,-151.0,0.00040631,120]
[393794997,1762995049760,-214.019769,0.00040631,120]
[393794998,1762995049769,-151.0,0.00040631,120]
[393794999,1762995049779,-214.019769,0.00040631,120]
[393795000,1762995049789,-151.0,0.00040631,120]
[393795001,1762995049799,-214.019769,0.00040631,120]
[393795002,1762995049809,-238.6492,0.00040631,120]
[393795003,1762995049819,-214.019769,0.00040631,120]
[393795004,1762995049828,-214.019769,0.00040631,120]
[393795005,1762995049838,-214.019769,0.00040631,120]
[393795006,1762995049847,-214.019773,0.00040631,120]
[393795007,1762995049857,-151.0,0.00040631,120]
[393795008,1762995049867,-151.0,0.00040631,120]
[393795009,1762995049877,-151.0,0.00040631,120]
[393795010,1762995049886,-151.0,0.00040631,120]
[393795011,1762995049896,-151.0,0.00040631,120]
[393795012,1762995050000,-151.0,0.00040631,120]
[393795013,1762995050011,-151.0,0.00040631,120]
[393795014,1762995050021,-151.0,0.00040631,120]
[393795015,1762995050031,-151.0,0.00040631,120]
[393795016,1762995050040,-151.0,0.00040631,120]
[393795017,1762995050050,-151.0,0.00040631,120]
[393795018,1762995050059,-188.438198,0.00040631,120]
[393795019,1762995050069,-151.0,0.00040631,120]
[393795020,1762995050079,-151.0,0.00040631,120]
[393795021,1762995050088,-151.0,0.00040631,120]
[393795022,1762995050097,-151.0,0.00040631,120]
[393795023,1762995050107,-151.0,0.00040631,120]
[393795024,1762995050116,-152.271596,0.00040631,120]
[393795025,1762995050125,-151.0,0.00040631,120]
[393795026,1762995050135,-151.0,0.00040631,120]
[393795027,1762995050144,-151.0,0.00040631,120]
[393795028,1762995050154,-151.0,0.00040631,120]
[393795029,1762995050164,-441154.20618442,0.00040632,7]
[393795030,1762995050514,-1026.9498,0.00040632,7]
[393795031,1762995050536,-18703.15457246,0.00040632,7]
[393795032,1762995050562,-544.38170658,0.00040632,7]
[393795033,1762995050592,-435.0150005,0.00040632,7]
[393795034,1762995050613,-14658.0739438,0.00040632,7]
[393795035,1762995050631,-1026.40959668,0.00040632,7]
[393795036,1762995050649,-40039.87294896,0.00040632,7]
[393795037,1762995051102,-560.0,0.00038339,2]
[393795038,1762995051112,-151.0,0.00040631,120]
[393795039,1762995051122,-1414.303798,0.00040631,30]
[393795040,1762995051132,-99612.01543096,0.00040632,7]
[393795041,1762995051144,-1040.28765252,0.00040632,7]
[393795042,1762995051157,-934.30341671,0.00040632,7]
[393795043,1762995051169,-10078.75992589,0.00040632,7]
[393795044,1762995051186,-58222.83698295,0.00040632,7]
[393795045,1762995051245,-3547.35280548,0.00040632,7]
[393795046,1762995051257,-14354.06786388,0.00040632,7]
[393795047,1762995051270,-396.42060508,0.00040632,7]
[393795048,1762995051282,-256.640002,0.00040632,7]
[393795049,1762995051298,-325.929999,0.00040632,7]
[393795050,1762995051310,-500.0,0.00040632,7]
[393795051,1762995051850,-483.09817918,0.00040631,30]
[393795052,1762995051899,-17.28404485,0.00040631,30]
[393795053,1762995051930,-913.92157397,0.00040631,30]
[393795054,1762995051940,-1414.303798,0.00040631,30]
[393795055,1762995051949,-3166.68514934,0.00040632,7]
[393795056,1762995051961,-870.7,0.00040632,7]
[393795057,1762995051980,-1019450.00000028,0.00040632,7]
[393795058,1762995052035,-148209.46995986,0.00040632,7]
[393795059,1762995052056,-20951.78422372,0.00017998,2]
[393795060,1762995052069,-607.59232788,0.00017998,2]
[393795061,1762995052079,-171.69628279,0.00022686,2]
[393795062,1762995052088,-90.5030955,0.00040632,7]
[393795063,1762995052614,-23873.67389934,0.00017899,2]
[393795064,1762995052624,-15437.95372622,0.00020398,2]
[393795065,1762995052639,-2073.65721855,0.00020398,2]
[393795066,1762995052651,-4047.76560683,0.00020398,2]
[393795067,1762995052660,-95.70072936,0.00022798,2]
[393795068,1762995052673,-8954.81793968,0.00022798,2]
[393795070,1762995128401,200.0,0.00040632,120]
[393795071,1762995128497,151.0,0.00040632,120]
[393795072,1762995135689,151.0,0.00040632,120]
[393795073,1762995136396,151.0,0.00040632,120]
[393795078,1762995242910,568.96,0.00013699,2]
[393795081,1762995632473,454.0,0.0003013,120]
[393795082,1762995775545,990.88,0.00016703,2]
[393795084,1762995806145,379.6978087,0.00040627,120]
[393795085,1762995834717,294.31066758,0.00040627,120]
[393795086,1762996158149,-990.88,0.00017548,2]
[393795087,1762996158170,-295.37305769,0.00017897,2]
[393795088,1762996158190,-353.04661365,0.00017997,2]
[393795092,1762996232188,-500.0,0.00017999,2]
[393795093,1762996232198,-250.0,0.00018196,2]
[393795094,1762996232208,-113.39514513,0.00018392,2]
[393795095,1762996232219,-877.48485487,0.00018392,2]
[393795097,1762996232229,-990.88,0.00019237,2]
[393795098,1762996232238,-1200.0,0.00019301,2]
[393795100,1762996232247,-300.0,0.00019301,2]
[393795101,1762996232257,-1200.0,0.00019301,2]
[393795102,1762996232266,-300.0,0.00019302,2]
[393795103,1762996232275,-250.0,0.00019799,2]
[393795104,1762996232284,-500.0,0.00019999,2]
[393795105,1762996232293,-990.88,0.00020081,2]
[393795106,1762996232303,-568.96,0.00020187,2]
[393795107,1762996232312,-5355.52950992,0.00020204,2]
[393795108,1762996232321,-990.88,0.00020926,2]
[393795109,1762996232330,-1247.0,0.00021134,2]
[393795110,1762996232339,-990.88,0.00021771,2]
[393795111,1762996232347,-990.88,0.00022615,2]
[393795112,1762996232356,-151.0,0.00022784,2]
[393795113,1762996232365,-151.0,0.00022784,2]
[393795114,1762996232374,-151.0,0.00022784,2]
[393795115,1762996232382,-151.0,0.00022784,2]
[393795116,1762996232391,-151.0,0.00022784,2]
[393795117,1762996232401,-151.0,0.00022784,2]
[393795118,1762996232410,-151.0,0.00022784,2]
[393795119,1762996232419,-151.0,0.00022784,2]
[393795120,1762996232428,-151.0,0.00022784,2]
[393795121,1762996232437,-151.0,0.00022784,2]
[393795122,1762996232446,-151.0,0.00022784,2]
[393795123,1762996232455,-151.0,0.00022784,2]
[393795124,1762996232464,-151.0,0.00022784,2]
[393795125,1762996232473,-151.0,0.00022784,2]
[393795126,1762996232483,-151.0,0.00022784,2]
[393795127,1762996232493,-151.0,0.00022784,2]
[393795128,1762996232502,-151.0,0.00022784,2]
[393795129,1762996232511,-151.0,0.00022784,2]
[393795130,1762996232520,-151.0,0.00022784,2]
[393795131,1762996232531,-151.0,0.00022784,2]
[393795132,1762996232541,-151.0,0.00022798,2]
[393795133,1762996232551,-12508.85788256,0.00022798,2]
[393795134,1762996232562,-500.0,0.0002285,2]
[393795136,1762996232573,-150.09,0.00023,2]
[393795138,1762996232583,-4250.58656118,0.00023004,2]
[393795140,1762996232594,-500.0,0.00023398,2]
[393795142,1762996232607,-990.88,0.0002346,2]
[393795144,1762996232617,-180.36,0.00023551,2]
[393795146,1762996232627,-990.88,0.00024305,2]
[393795148,1762996232639,-540.25778272,0.00024345,2]
[393795149,1762996232648,-2000.0,0.000244,2]
[393795151,1762996232659,-3112.41698237,0.00024731,2]
[393795152,1762996232669,-10847.87,0.00024888,2]
[393795153,1762996232679,-990.88,0.00025149,2]
[393795154,1762996232691,-438.49199624,0.00025173,2]
[393795156,1762996232701,-14536.63955125,0.00025198,2]
[393795158,1762996232715,-434.57723662,0.00025198,2]
[393795162,1762996232748,-1807.01762166,0.00025198,2]
[393795163,1762996232761,-327.7799999,0.00025198,2]
[393795164,1762996232776,-357.30360357,0.00025198,2]
[393795165,1762996232788,-1085.12755497,0.00025198,2]
[393795166,1762996232801,-450.0,0.00025198,2]
[393795167,1762996232812,-2560.93098363,0.00025198,2]
[393795168,1762996232822,-1000.0,0.00025314,2]
[393795169,1762996232833,-990.88,0.00025994,2]
[393795170,1762996232845,-530.18901637,0.00026676,2]
[393795171,1762996232860,-38.77098363,0.00026676,2]
[393795172,1762996232870,-397.82912909,0.00026838,2]
[393795173,1762996232882,-339.66691684,0.00026838,2]
[393795174,1762996232894,-253.38395407,0.00026838,2]
[393795175,1762996232904,-2293.95054593,0.00026952,2]
[393795176,1762996232915,-115.47945407,0.00026952,2]
[393795177,1762996232925,-913.41393785,0.00027683,2]
[393795183,1762996238119,-151.0,0.00027683,2]
[393795184,1762996238130,-77.46606215,0.00027683,2]
[393795185,1762996238140,-277.49489422,0.00027928,2]
[393795186,1762996238233,-201.07178952,0.00027928,2]
[393795187,1762996238243,-571.21121568,0.000281,2]
[393795188,1762996238255,-1020.0481635,0.000281,2]
[393795189,1762996238267,-408.74062082,0.000281,2]
[393795190,1762996238278,-150.0,0.00028219,2]
[393795191,1762996238288,-1000.0,0.00028479,2]
[393795192,1762996238298,-594.62543749,0.00028528,2]
[393795193,1762996238313,-396.25456251,0.00028528,2]
[393795194,1762996238323,-990.88,0.00029372,2]
[393795195,1762996238332,-1251.87,0.00029888,30]
[393795196,1762996238342,-1000.0,0.000299,2]
[393795197,1762996238351,-300.0,0.00030081,2]
[393795198,1762996238360,-990.88,0.00030217,2]
[393795199,1762996238370,-416.52,0.00030242,2]
[393795200,1762996238380,-990.88,0.00031062,2]
[393795201,1762996238389,-1000.0,0.00031228,2]
[393795202,1762996238399,-2028.87,0.00031426,2]
[393795203,1762996238408,-100.29525499,0.00031426,2]
[393795206,1762996238424,-50.69474501,0.00031426,2]
[393795207,1762996238434,-440.96,0.00031426,2]
[393795208,1762996238443,-145.23111701,0.00031643,2]
[393795209,1762996238454,-854.76888299,0.00031643,2]
[393795210,1762996238464,-2751.0,0.00031794,120]
[393795211,1762996238474,-1725.0,0.000318,2]
[393795212,1762996238484,-990.88,0.00031906,2]
[393795213,1762996238493,-934.56,0.00032057,120]
[393795214,1762996238502,-990.88,0.00032751,2]
[393795215,1762996238512,-179.19423225,0.00033005,34]
[393795237,1762996243527,-196.91537178,0.00028119,2]
[393795238,1762996243538,-151.0,0.00032751,2]
[393795239,1762996243548,-1030.77576775,0.00033005,34]
[393795240,1762996243558,-568.96,0.00033165,2]
[393795241,1762996243568,-1000.0,0.000336,2]
[393795242,1762996243578,-1000.0,0.00034807,2]
[393795243,1762996243588,-181.34405907,0.00034893,2]
[393795244,1762996243597,-1251.87,0.00034935,30]
[393795245,1762996243608,-180.36,0.00035327,2]
[393795246,1762996243618,-1725.65179145,0.000355,2]
[393795247,1762996243627,-500.0,0.00035589,2]
[393795248,1762996243637,-150.0,0.00036542,7]
[393795249,1762996243647,-150.0,0.00037219,7]
[393795250,1762996243657,-253.0,0.00037366,120]
[393795251,1762996243667,-150.0,0.00037896,7]
[393795252,1762996243676,-113.22963311,0.00037972,2]
[393795253,1762996243688,-886.77036689,0.00037972,2]
[393795254,1762996243698,-674.1,0.00038016,20]
[393795255,1762996243711,-500.0,0.00038016,20]
[393795256,1762996243720,-500.0,0.00038016,2]
[393795257,1762996243730,-6666.0,0.0003835,2]
[393795258,1762996243743,-2143.0,0.0003835,2]
[393795259,1762996243754,-560.0,0.0003835,2]
[393795260,1762996243765,-168.0,0.00038387,2]
[393795261,1762996243775,-150.0,0.00038573,7]
[393795262,1762996243785,-253.0,0.00038593,7]
[393795263,1762996243794,-500.0,0.000387,120]
[393795264,1762996243804,-500.0,0.000387,120]
[393795265,1762996243813,-500.0,0.000387,120]
[393795266,1762996243823,-500.0,0.000387,120]
[393795267,1762996243833,-500.0,0.000387,120]
[393795268,1762996243844,-500.0,0.000387,120]
[393795269,1762996243856,-500.0,0.000387,120]
[393795270,1762996243865,-500.0,0.000387,120]
[393795271,1762996243875,-500.0,0.000387,120]
[393795272,1762996243886,-2409.43,0.00038733,2]
[393795273,1762996243895,-1974.0797,0.00038888,30]
[393795274,1762996243908,-500.0,0.00038916,30]
[393795275,1762996243918,-219.3421,0.00039007,7]
[393795276,1762996243929,-150.0,0.00039057,2]
[393795277,1762996243939,-168.0,0.00039072,2]
[393795278,1762996243949,-168.0,0.00039078,2]
[393795279,1762996243959,-168.0,0.00039163,2]
[393795280,1762996243969,-648.0,0.00039176,2]
[393795281,1762996243979,-150.0,0.00039249,7]
[393795282,1762996243993,-551.29,0.00039622,2]
[393795283,1762996244003,-645.0,0.00039637,2]
[393795284,1762996244012,-568.96,0.00039654,2]
[393795285,1762996244022,-1851.57282126,0.00039694,120]
[393795286,1762996244032,-4706.6549221,0.000398,2]
[393795287,1762996244041,-300.0,0.000398,14]
[393795288,1762996244052,-700.0,0.000399,14]
[393795289,1762996244062,-150.0,0.00039926,7]
[393795290,1762996244072,-1251.87,0.00039982,30]
[393795291,1762996244084,-2006.00998803,0.0004,120]
[393795292,1762996244098,-753.79720486,0.0004,120]
[393795293,1762996244110,-21486.30650937,0.00040061,15]
[393795294,1762996244124,-2500.0,0.00040062,2]
[393795295,1762996244134,-1000.0,0.00040062,2]
[393795296,1762996244145,-1100.0,0.000401,14]
[393795297,1762996244155,-21486.30650932,0.00040113,15]
[393795299,1762996244166,-296.76,0.00040161,30]
[393795300,1762996244176,-1000.0,0.00040162,2]
[393795301,1762996244186,-33295.3526,0.00040162,2]
[393795302,1762996244197,-3002.4914,0.00040163,2]
[393795303,1762996244209,-21486.30650932,0.00040165,15]
[393795304,1762996244219,-200.37897285,0.00040167,12]
[393795305,1762996244230,-1052.66280908,0.00040167,15]
[393795306,1762996244243,-168.0,0.00040172,2]
[393795307,1762996244255,-515.12719469,0.00040173,5]
[393795308,1762996244265,-500.0,0.00040173,5]
[393795309,1762996244275,-579.35361335,0.00040173,5]
[393795310,1762996244286,-500.0,0.00040173,2]
[393795311,1762996244297,-500.0,0.00040173,5]
[393795312,1762996244307,-1500.0,0.000402,14]
[393795313,1762996244319,-300.0,0.00040207,99]
[393795314,1762996244329,-1052.66280905,0.00040207,15]
[393795315,1762996244339,-21486.30650932,0.00040216,15]
[393795316,1762996244348,-3332.07539816,0.0004023,2]
[393795317,1762996244358,-2474.0,0.00040244,5]
[393795318,1762996244367,-1052.66280905,0.00040247,15]
[393795319,1762996244377,-711.68,0.00040253,2]
[393795320,1762996244386,-711.68,0.00040253,2]
[393795321,1762996244397,-711.68,0.00040253,2]
[393795322,1762996244406,-711.68,0.00040253,2]
[393795323,1762996244416,-711.68,0.00040253,2]